bitfinex/quotes_ETHUSD_20240722
["timestamp","ask_amount","ask_price","bid_price","bid_amount"]
[1721632931269,2.4665,3476.4,3475.9,2.87695]
[1721632932727,2.4665,3476.4,3475.7,2.87711]
[1721632933346,2.4665,3476.4,3476.0,2.87685]
[1721632934013,2.4665,3476.4,3476.1,2.87675]
[1721632934225,7.48,3476.6,3475.6,0.287719]
[1721632934527,7.48,3476.6,3474.5,1.50019398]
[1721632934528,7.48,3476.6,3475.5,2.87723]
[1721632934747,7.48,3476.6,3476.5,2.87645]
[1721632935043,7.48,3477.3,3476.5,2.87645]
[1721632935247,2.87575,3477.4,3476.6,2.87637]
[1721632935934,2.4858,3477.5,3476.5,2.87643]
[1721632935935,2.87582,3477.3,3476.5,2.87643]
[1721632936801,2.93339903,3477.2,3476.0,2.87686]
[1721632937033,2.87635,3476.7,3476.0,2.87684]
[1721632937399,2.4445,3476.8,3476.0,2.87684]
[1721632937630,2.4445,3476.8,3475.1,10.3]
[1721632937631,2.87637,3476.6,3475.6,2.87718]
[1721632937833,2.4445,3476.8,3475.2,2.87752]
[1721632937834,2.87672,3476.2,3475.2,2.87752]
[1721632938150,2.87672,3476.2,3475.5,2.87725]
[1721632938598,2.87658,3476.4,3475.5,2.87725]
[1721632938841,6.408547,3476.5,3475.5,2.87725]
[1721632938996,0.05751903,3476.4,3475.5,2.87725]
[1721632939218,0.35158616,3476.3,3475.5,2.87725]
[1721632939619,2.8768,3476.1,3475.3,2.87744]
[1721632939907,2.8768,3476.1,3474.5,5.87804]
[1721632939908,2.8768,3476.1,3475.4,2.87735]
[1721632940120,5.15281,3476.2,3475.4,2.87735]
[1721632940742,2.93430903,3476.1,3475.4,2.87735]
[1721632941051,2.2761,3476.2,3475.6,2.87718]
[1721632942794,2.2761,3476.2,3475.5,2.87728]
[1721632943000,2.2761,3476.2,3475.1,0.05754105]
[1721632943245,3.0,3476.5,3476.0,2.87685]
[1721632943447,3.0,3476.5,3475.8,2.87703]
[1721632943448,3.0,3476.5,3476.1,2.87677]
[1721632944614,3.0,3476.5,3475.9,2.87691]
[1721632944994,3.0,3476.5,3476.1,2.87677]
[1721632946443,3.0,3476.5,3476.0,2.87686]
[1721632946639,3.0,3476.5,3475.8,2.87697]
[1721632948237,3.05751903,3476.5,3475.7,2.8771]
[1721632948463,3.0,3476.5,3475.7,2.8771]
[1721632948658,5.87646,3476.5,3475.7,2.8771]
[1721632950648,5.87646,3476.5,3475.8,2.87703]
[1721632950963,2.87669,3476.3,3475.5,2.87722]
[1721632951143,0.05751903,3476.2,3475.5,2.87722]
[1721632951470,2.87655,3476.4,3475.5,2.87722]
[1721632952278,2.87662,3476.3,3475.3,2.87743]
[1721632952483,2.4806,3476.2,3475.3,2.87743]
[1721632952693,2.53811903,3476.2,3475.3,2.87743]
[1721632953452,2.4806,3476.2,3474.6,4.000404]
[1721632953668,2.4806,3476.2,3475.5,2.87723]
[1721632954364,2.4806,3476.2,3475.6,2.87719]
[1721632955176,2.4806,3476.2,3475.8,2.87702]
[1721632956637,2.4806,3476.2,3475.9,2.87694]
[1721632956837,3.0,3476.5,3475.9,2.87694]
[1721632958045,3.0,3476.5,3476.1,2.87678]
[1721632959358,3.0,3476.5,3475.9,2.87694]
[1721632959359,3.0,3476.5,3476.2,2.8767]
[1721632959682,2.87614,3476.9,3476.2,0.575356]
[1721632959850,5.87614,3476.9,3476.2,2.8767]
[1721632960378,3.0,3476.9,3476.2,2.8767]
[1721632960576,3.0,3476.9,3476.5,2.87643]
[1721632961187,9.8711,3477.0,3476.5,2.87643]
[1721632961345,9.8711,3477.0,3476.6,2.87637]
[1721632961770,9.8711,3477.0,3476.3,2.87662]
[1721632961984,9.8711,3477.0,3476.3,3.164282]
[1721632962481,12.74719,3477.0,3476.3,3.164282]
[1721632962687,9.8711,3477.0,3476.3,2.87662]
[1721632963249,10.47097363,3477.0,3476.3,2.87662]
[1721632963676,10.47097363,3477.0,3476.4,2.87652]
[1721632964055,9.8711,3477.0,3476.4,2.87652]
[1721632964260,0.59987363,3476.9,3476.4,2.87652]
[1721632965083,0.59987363,3476.8,3476.4,2.87652]
[1721632965271,0.59987363,3476.7,3476.4,2.87652]
[1721632965473,0.59987363,3476.8,3476.4,2.87652]
[1721632965774,0.59987363,3476.7,3476.4,2.87652]
[1721632967053,0.59987363,3476.7,3476.2,2.87668]
[1721632967252,0.59987363,3476.6,3476.2,2.87668]
[1721632967794,0.59987363,3476.6,3475.6,3.452605]
[1721632967999,0.59987363,3476.6,3475.7,4.0199205]
[1721632968158,0.59987363,3476.6,3476.2,2.87664]
[1721632970297,0.89453333,3476.7,3476.2,2.87664]
[1721632970298,0.59987363,3476.5,3476.2,2.87664]
[1721632970501,0.59987363,3476.6,3476.2,2.87664]
[1721632971201,0.59987363,3476.5,3476.2,2.87664]
[1721632973895,0.59987363,3476.6,3476.3,2.87661]
[1721632975299,0.59987363,3476.5,3476.3,2.87661]
[1721632975701,0.59987363,3476.6,3476.3,2.87661]
[1721632977505,0.59987363,3476.6,3476.1,2.87673]
[1721632977680,0.59987363,3476.5,3476.1,2.87673]
[1721632979166,0.59987363,3476.5,3476.2,2.87668]
[1721632979882,0.59987363,3476.5,3476.0,2.8768]
[1721632980080,0.59987363,3476.5,3476.1,2.87673]
[1721632980609,0.59987363,3476.5,3476.2,2.87664]
[1721632982165,0.59987363,3476.6,3476.2,2.87664]
[1721632983236,0.59987363,3476.6,3476.3,2.87661]
[1721632984802,0.59987363,3476.5,3476.3,2.87661]
[1721632985003,0.59987363,3476.5,3476.1,2.87672]
[1721632986134,0.59987363,3476.4,3476.1,2.87672]
[1721632986528,1.2927155,3476.7,3476.1,2.87672]
[1721632986529,0.59987363,3476.5,3476.1,2.87672]
[1721632988011,0.59987363,3476.5,3476.2,2.87668]
[1721632988231,0.59987363,3476.5,3475.7,0.5928505]
[1721632988416,0.59987363,3476.5,3475.8,0.20928633]
[1721632988741,0.59987363,3476.5,3476.3,2.87659]
[1721632991344,4.62261418,3476.4,3475.8,2.87697]
[1721632991629,0.60286408,3476.2,3475.8,2.87697]
[1721632991832,0.60286408,3476.1,3475.8,2.87697]
[1721632992141,0.60286408,3476.2,3475.9,2.87693]
[1721632992302,3.16939612,3476.4,3476.0,2.87685]
[1721632992303,0.60286408,3476.3,3476.0,2.87685]
[1721632993533,0.60286408,3476.2,3475.8,2.87697]
[1721632993899,0.60286408,3476.2,3475.9,2.87694]
[1721632994637,0.60286408,3476.2,3476.0,2.87686]
[1721632996128,0.60286408,3476.2,3476.1,2.87678]
[1721632996339,0.60286408,3476.2,3476.1,3.452144]
[1721632996514,0.60286408,3476.2,3476.0,2.87681]
[1721632997353,0.60286408,3476.3,3476.0,2.87681]
[1721632997500,2.06584438,3476.2,3476.0,2.87681]
[1721632997706,0.60286408,3476.2,3475.8,2.87699]
[1721632998145,0.60286408,3476.2,3475.6,2.87717]
[1721632998352,0.60286408,3476.2,3475.4,1.50008435]
[1721632998353,3.47957408,3476.2,3475.4,1.50008435]
[1721632998550,2.3867,3476.0,3475.4,1.50008435]
[1721632998866,1.46304045,3475.9,3475.4,4.37742435]
[1721632999906,1.46304045,3475.9,3475.4,1.50008435]
[1721633000520,1.46304045,3475.9,3475.4,4.37744435]
[1721633000912,1.46304045,3475.9,3475.4,2.87736]
[1721633002839,1.46304045,3475.9,3475.3,0.60129672]
[1721633003137,1.46304045,3475.9,3475.3,3.47873672]
[1721633003342,1.46304045,3475.9,3475.5,2.87728]
[1721633004423,1.46304045,3475.9,3475.3,3.47871672]
[1721633004609,1.46304045,3475.9,3475.6,2.87719]
[1721633006146,2.3867,3476.0,3475.6,2.87719]
[1721633008240,0.60286408,3476.2,3476.1,5.75356]
[1721633008614,0.60286408,3476.2,3476.1,2.87678]
[1721633010417,0.60286408,3476.2,3476.1,5.75356]
[1721633011264,8.6727111,3476.6,3476.4,2.87653]
[1721633011265,0.60286408,3476.5,3476.4,2.87653]
[1721633011568,8.08286408,3476.6,3476.4,2.87653]
[1721633011915,8.08286408,3476.6,3476.5,2.87645]
[1721633011916,0.60286408,3476.6,3476.5,2.87645]
[1721633012123,1.89167782,3476.6,3476.5,2.87645]
[1721633012430,0.60286408,3476.6,3476.5,2.87645]
[1721633014653,0.60286408,3476.6,3476.3,2.87656]
[1721633014855,0.60286408,3476.6,3476.2,2.87668]
[1721633015655,0.60286408,3476.6,3476.4,2.87648]
[1721633015855,0.60286408,3476.6,3476.5,2.87645]
[1721633016156,2.87346408,3476.7,3476.5,2.87645]
[1721633016726,0.60286408,3476.6,3476.5,2.87645]
[1721633017041,2.2706,3476.7,3476.6,2.87637]
[1721633017042,2.87346408,3476.7,3476.6,2.87637]
[1721633017558,0.60286408,3476.7,3476.6,2.87637]
[1721633017781,0.60286408,3476.7,3476.6,6.328029]
[1721633017983,0.60286408,3477.2,3477.1,2.87595]
[1721633018122,0.60286408,3477.2,3476.6,5.745259]
[1721633018123,0.60286408,3477.2,3477.0,2.87602]
[1721633018458,0.60286408,3477.3,3477.1,2.87595]
[1721633019240,0.60286408,3477.3,3476.8,2.8762]
[1721633019554,0.60286408,3477.3,3476.8,3.4507089]
[1721633020275,0.90429612,3477.5,3477.0,2.87601]
[1721633020276,0.60286408,3477.4,3477.0,2.87601]
[1721633020857,0.60286408,3477.4,3476.8,3.4507089]
[1721633020858,0.60286408,3477.3,3476.8,3.4507089]
[1721633021183,0.60286408,3477.3,3476.8,2.8762]
[1721633022064,0.60286408,3477.3,3476.6,3.451659]
[1721633022256,3.77997612,3477.5,3476.6,3.451659]
[1721633022257,0.60286408,3477.4,3476.9,2.87612]
[1721633023080,0.60286408,3477.4,3476.7,2.87627]
[1721633023267,3.47858408,3477.4,3476.8,2.8762]
[1721633025848,2.87572,3477.4,3476.8,2.8762]
[1721633026471,0.60286408,3477.5,3476.8,2.8762]
[1721633026873,3.47849408,3477.5,3476.8,2.8762]
[1721633027172,0.60286408,3477.5,3476.9,2.87605]
[1721633027854,3.47849408,3477.5,3476.9,2.87605]
[1721633029752,2.4029,3477.4,3476.9,2.87605]
[1721633029952,2.87582,3477.3,3476.7,2.87628]
[1721633030350,2.87582,3477.3,3476.5,2.87639]
[1721633030590,2.87582,3477.3,3476.6,2.87637]
[1721633031093,5.27861,3477.4,3476.5,2.87644]
[1721633031317,5.27861,3477.4,3476.6,0.287644]
[1721633031527,5.27861,3477.4,3476.2,3.0]
[1721633031685,5.27861,3477.4,3476.1,2.3962]
[1721633031868,5.27861,3477.4,3476.2,0.55]
[1721633032093,5.27861,3477.4,3476.2,3.55]
[1721633032890,5.27861,3477.4,3476.8,2.8762]
[1721633033454,2.4029,3477.4,3476.8,2.8762]
[1721633033650,2.4029,3477.4,3477.0,2.87602]
[1721633036205,2.4029,3477.4,3476.8,2.8762]
[1721633036499,2.4029,3477.4,3477.1,2.87594]
[1721633038696,2.4029,3477.4,3476.9,2.87611]
[1721633039559,2.4029,3477.4,3477.0,2.87603]
[1721633039763,2.4029,3477.4,3477.1,2.87594]
[1721633040500,2.4029,3477.4,3476.4,2.87649]
[1721633040662,2.4029,3477.4,3477.1,2.87595]
[1721633042078,2.4029,3477.4,3477.0,2.87603]
[1721633043875,2.4029,3477.4,3477.1,2.87594]
[1721633044233,2.4029,3477.4,3476.5,0.642649]
[1721633044373,2.4732,3477.7,3476.7,2.3009]
[1721633044711,2.4732,3477.7,3477.4,2.87569]
[1721633045296,2.4732,3477.7,3477.0,2.87604]
[1721633045687,2.4732,3477.7,3476.6,0.3519139]
[1721633046011,2.4732,3477.7,3476.9,2.87612]
[1721633046377,3.07606408,3477.7,3476.9,2.87612]
[1721633046577,2.4732,3477.7,3476.9,2.87612]
[1721633046816,2.4732,3477.7,3477.2,2.87587]
[1721633046979,2.4732,3477.7,3477.0,2.87603]
[1721633046980,2.4732,3477.7,3477.3,2.87578]
[1721633049310,3.07606408,3477.7,3477.3,2.87578]
[1721633052596,3.07606408,3477.7,3477.4,2.87569]
[1721633053181,0.60286408,3477.6,3477.4,2.87569]
[1721633053387,0.60286408,3477.6,3477.2,2.87587]
[1721633053388,3.07606408,3477.7,3477.5,2.87562]
[1721633053586,2.4732,3477.7,3477.5,2.87562]
[1721633054203,3.07606408,3477.7,3477.5,2.87562]
[1721633055916,3.07606408,3477.7,3476.8,2.87616]
[1721633055917,3.07606408,3477.7,3477.6,2.87554]
[1721633057025,3.07606408,3477.7,3477.4,2.87565]
[1721633057242,0.60286408,3477.6,3477.4,2.87565]
[1721633058799,0.60286408,3477.6,3477.3,2.87577]
[1721633059009,0.60286408,3477.6,3477.5,2.87562]
[1721633062118,1.1927111,3477.9,3477.7,5.75092]
[1721633062119,0.60286408,3477.8,3477.7,5.75092]
[1721633062304,0.90429612,3477.9,3477.8,5.75076]
[1721633062631,2.3494,3478.4,3477.7,2.87546]
[1721633062632,0.60330554,3478.2,3477.7,2.87546]
[1721633062796,0.60330554,3478.3,3478.2,2.87505]
[1721633063003,0.60330554,3478.3,3478.2,5.7501]
[1721633063214,0.60330554,3478.4,3478.3,5.74992]
[1721633063512,0.60330554,3478.5,3478.4,2.87488]
[1721633063723,1.29131242,3478.5,3478.4,2.87488]
[1721633063927,1.89436836,3478.5,3478.4,2.87488]
[1721633064105,0.60305594,3478.5,3478.4,2.87488]
[1721633064633,0.60305594,3478.6,3478.5,2.8748]
[1721633064931,2.88235594,3478.7,3478.5,2.8748]
[1721633065132,2.2793,3478.7,3478.5,2.87005356]
[1721633065632,0.60305594,3478.8,3478.5,2.87005356]
[1721633066037,0.60305594,3478.9,3478.8,5.7491]
[1721633066239,7.48,3479.1,3478.8,2.87455]
[1721633067697,7.48,3479.1,3479.0,2.87438]
[1721633067910,2.399,3479.4,3478.8,2.87454]
[1721633067911,3.00205594,3479.4,3478.8,2.87454]
[1721633068140,3.00205594,3479.4,3478.6,2.87471]
[1721633068141,3.04885594,3479.2,3478.6,2.87471]
[1721633068337,2.93182903,3479.1,3478.2,2.87504]
[1721633068635,2.87431,3479.1,3478.5,2.87479]
[1721633068934,3.47736594,3479.1,3478.5,2.87479]
[1721633069150,2.87431,3479.1,3478.5,2.87479]
[1721633070121,2.4458,3479.2,3478.7,2.87457]
[1721633070322,2.4458,3479.2,3478.8,2.87454]
[1721633071337,2.4458,3479.2,3478.9,2.87446]
[1721633072224,2.4458,3479.2,3478.8,2.87453]
[1721633072546,2.4322,3479.6,3479.1,2.8743]
[1721633072747,2.4322,3479.6,3479.2,2.8742]
[1721633074356,2.4322,3479.6,3479.0,2.87436]
[1721633076329,2.87398,3479.5,3478.8,2.8745]
[1721633076528,2.87398,3479.5,3478.3,2.2693]
[1721633076529,2.87398,3479.5,3478.9,2.87446]
[1721633080581,2.3663,3479.3,3478.3,2.87495]
[1721633080750,2.3663,3479.1,3478.4,2.87486]
[1721633081219,2.3663,3479.1,3478.3,2.87496]
[1721633081419,0.52405,3479.0,3478.3,2.87496]
[1721633081655,0.52405,3479.0,3478.6,2.8747]
[1721633083157,0.52405,3479.0,3478.7,2.87463]
[1721633083338,2.3663,3479.1,3478.7,2.87463]
[1721633083666,2.3663,3479.1,3478.8,2.87453]
[1721633083827,2.3663,3479.1,3477.9,2.3666]
[1721633083828,2.3663,3479.1,3478.9,2.87444]
[1721633084230,6.47670594,3479.9,3477.9,2.3666]
[1721633084231,2.3444,3479.4,3479.0,2.87436]
[1721633084672,2.3444,3479.4,3478.5,2.4549]
[1721633084874,2.3444,3479.4,3479.3,2.87414]
[1721633085171,2.3444,3479.4,3479.1,2.87425]
[1721633086536,2.3444,3479.4,3479.2,2.87421]
[1721633088770,2.3444,3479.4,3479.0,2.87437]
[1721633088939,2.3444,3479.4,3479.2,2.87416]
[1721633089191,2.3444,3479.4,3479.0,2.87437]
[1721633089954,2.5845919,3479.4,3478.8,2.87454]
[1721633091735,2.5845919,3479.4,3478.9,2.87446]
[1721633092252,5.4586519,3479.4,3478.7,2.8746]
[1721633092451,0.05751903,3479.3,3478.7,2.8746]
[1721633092734,0.26421109,3479.2,3478.5,2.87478]
[1721633092933,0.26421109,3479.2,3478.3,2.87494]
[1721633092934,2.38421903,3479.1,3478.4,2.87483]
[1721633093291,2.87439,3479.0,3478.3,2.87494]
[1721633094089,2.4705,3478.8,3478.1,2.87512]
[1721633094290,0.05751903,3478.7,3478.1,2.87512]
[1721633094940,0.05751903,3478.7,3477.9,2.87529]
[1721633095090,2.3353,3478.6,3477.7,2.87545]
[1721633095293,2.3353,3478.3,3477.8,2.87536]
[1721633096870,2.3353,3478.3,3477.9,2.87529]
[1721633097168,2.3353,3478.3,3477.1,2.4148]
[1721633097169,2.3353,3478.3,3477.3,2.87576]
[1721633097369,2.3353,3478.3,3478.0,2.87521]
[1721633097569,2.3353,3478.8,3478.2,2.87505]
[1721633098059,2.3353,3478.8,3478.3,2.87496]
[1721633098780,2.3353,3478.8,3478.4,2.87486]
[1721633101486,2.3353,3478.8,3478.2,2.87503]
[1721633101777,2.3353,3478.8,3478.0,2.87519]
[1721633101983,2.3934,3478.7,3478.0,2.87519]
[1721633102342,2.87472,3478.6,3478.0,2.87519]
[1721633102542,2.3934,3478.7,3478.0,2.87519]
[1721633102744,2.3934,3478.7,3478.1,2.87512]
[1721633103155,2.3934,3478.7,3477.7,2.87538]
[1721633103358,2.3934,3478.7,3478.4,2.87488]
[1721633104116,0.60305594,3478.9,3478.0,2.3293]
[1721633104254,2.2759,3479.1,3478.1,0.55]
[1721633104453,2.2759,3479.1,3478.6,2.87467]
[1721633104904,5.15022,3479.1,3478.4,2.87483]
[1721633105054,5.75327594,3479.1,3478.4,2.87483]
[1721633105478,0.60305594,3479.0,3478.4,2.87483]
[1721633105690,2.3367,3478.9,3478.3,2.87496]
[1721633105868,2.3367,3478.9,3478.1,2.87512]
[1721633106173,2.3367,3478.9,3478.2,2.87503]
[1721633106357,2.3367,3478.9,3478.5,2.87478]
[1721633106754,2.3367,3478.9,3477.9,3.0]
[1721633106755,2.3367,3478.9,3478.6,2.87471]
[1721633107189,2.3367,3478.9,3478.8,2.87455]
[1721633107510,2.3367,3478.9,3478.2,2.87499]
[1721633107511,0.60305594,3479.2,3478.9,2.87446]
[1721633108733,0.60305594,3479.2,3479.0,2.87437]
[1721633108892,0.60305594,3479.2,3479.1,2.8743]
[1721633109257,0.90429612,3479.4,3479.3,2.87414]
[1721633109258,0.60305594,3479.4,3479.3,2.87414]
[1721633109511,0.60305594,3479.5,3479.3,2.87414]
[1721633109717,0.60305594,3479.5,3479.4,2.87405]
[1721633111075,0.60305594,3479.5,3479.2,2.87417]
[1721633111278,0.60305594,3479.5,3478.7,2.87463]
[1721633111505,0.60305594,3479.5,3478.3,5.28459]
[1721633111506,0.60305594,3479.3,3479.0,2.87432]
[1721633111816,0.90429612,3479.5,3479.0,2.87432]
[1721633111817,0.60305594,3479.4,3479.0,2.87432]
[1721633112188,0.60305594,3479.4,3479.1,2.8743]
[1721633113534,0.60305594,3479.3,3478.9,2.87447]
[1721633113890,0.60305594,3479.3,3479.0,2.87438]
[1721633114094,0.60305594,3479.3,3479.1,2.8743]
[1721633114318,0.37630521,3479.3,3478.9,2.87442]
[1721633114519,2.2565,3479.2,3478.5,2.87479]
[1721633114711,3.47745594,3479.0,3478.3,2.87493]
[1721633115044,2.3083,3478.7,3477.5,2.4782]
[1721633115239,0.60305594,3478.8,3477.1,1.20259345]
[1721633115240,0.60305594,3478.5,3477.6,2.87554]
[1721633115406,0.60305594,3478.5,3477.0,2.10006968]
[1721633115407,3.06209115,3478.4,3477.5,2.8756]
[1721633115612,0.60305594,3478.1,3477.5,2.8756]
[1721633115960,3.05225594,3477.9,3477.3,2.87577]
[1721633116362,0.05751903,3477.8,3477.3,2.87577]
[1721633116654,3.05225594,3477.9,3477.3,5.75154]
[1721633116857,3.05225594,3477.9,3477.4,2.87569]
[1721633117006,3.05225594,3477.9,3477.4,5.75132]
[1721633117208,2.4492,3477.9,3477.7,2.87545]
[1721633117452,2.4492,3477.9,3477.5,2.87562]
[1721633118014,2.4492,3477.9,3477.6,2.87551]
[1721633118238,2.4492,3477.9,3476.9,2.87605]
[1721633118239,2.4492,3477.9,3477.7,2.87542]
[1721633118923,0.60305594,3478.1,3477.8,2.87538]
[1721633119107,0.60305594,3478.1,3476.6,6.2282739]
[1721633119108,8.08305594,3478.3,3477.9,2.87521]
[1721633119320,7.48,3478.3,3477.9,2.87521]
[1721633120856,7.48,3478.3,3477.8,2.87536]
[1721633121056,7.98736795,3478.3,3477.5,2.87561]
[1721633121231,8.59042389,3478.3,3477.5,2.87561]
[1721633121442,7.98736795,3478.3,3477.7,2.8754]
[1721633121636,7.98736795,3478.3,3477.8,2.87537]
[1721633122044,7.98736795,3478.3,3477.9,2.87527]
[1721633122221,7.48,3478.3,3477.8,2.87535]
[1721633122423,7.48,3478.3,3477.7,0.05750495]
[1721633122424,7.48,3478.3,3477.7,0.05749391]
[1721633122628,0.90429612,3478.8,3478.4,2.87482]
[1721633122629,7.48,3478.7,3478.4,2.87482]
[1721633122880,2.2777,3478.8,3478.4,2.87482]
[1721633123029,2.2777,3478.8,3478.2,2.87505]
[1721633123229,2.2777,3478.8,3478.3,2.87495]
[1721633123958,2.2777,3478.8,3478.4,2.87488]
[1721633124142,2.2777,3478.8,3478.5,2.87479]
[1721633125748,2.2777,3478.8,3478.4,2.87486]
[1721633126692,12.41,3479.1,3478.9,2.87439]
[1721633126831,2.4982,3479.3,3478.4,2.87487]
[1721633127033,2.4982,3479.3,3478.0,2.4212]
[1721633127034,2.4982,3479.3,3478.7,2.87461]
[1721633127235,2.4982,3479.3,3479.0,2.87438]
[1721633127546,2.4982,3479.3,3479.2,2.87422]
[1721633127766,0.60305594,3479.6,3479.1,2.8743]
[1721633127767,2.96945594,3479.6,3479.1,2.8743]
[1721633129248,0.60305594,3479.5,3479.2,2.87421]
[1721633130173,2.96945594,3479.6,3479.2,2.87421]
[1721633130581,0.60305594,3479.5,3479.2,2.87421]
[1721633130923,2.96945594,3479.6,3479.2,2.87421]
[1721633131276,2.96945594,3479.6,3479.0,2.87438]
[1721633131531,0.60305594,3479.5,3479.0,2.87438]
[1721633132493,0.60305594,3479.5,3479.1,2.87429]
[1721633132697,2.96945594,3479.6,3479.1,2.87429]
[1721633132905,0.60305594,3479.5,3479.1,2.87429]
[1721633133410,0.60305594,3479.5,3478.5,0.837487]
[1721633133411,0.60305594,3479.5,3479.0,2.87437]
[1721633133787,0.60305594,3479.5,3479.1,2.87427]
[1721633134374,0.60305594,3479.5,3479.2,2.87421]
[1721633134580,2.96945594,3479.6,3479.2,2.87421]
[1721633135292,0.60305594,3479.5,3479.2,2.87421]
[1721633135686,0.60305594,3479.5,3479.0,2.87432]
[1721633135893,0.60305594,3479.5,3478.9,2.87447]
[1721633135894,0.60305594,3479.5,3479.1,2.87424]
[1721633136123,2.96945594,3479.6,3479.1,2.87424]
[1721633137387,5.84335594,3479.6,3478.9,2.87447]
[1721633137586,0.60305594,3479.5,3479.0,2.87437]
[1721633137905,2.96945594,3479.6,3478.9,2.87446]
[1721633138214,5.84339594,3479.6,3478.8,2.87449]
[1721633138428,3.47704594,3479.5,3478.8,2.87449]
[1721633138790,2.4907,3479.3,3478.6,2.87468]
[1721633139493,2.4907,3479.3,3478.0,2.4212]
[1721633139689,2.4907,3479.3,3478.4,2.87485]
[1721633139939,2.4907,3479.3,3478.8,2.87453]
[1721633143036,2.4907,3479.3,3478.9,2.87446]
[1721633143821,2.4907,3479.3,3479.0,2.87431]
[1721633144025,7.48,3479.4,3479.2,2.87422]
[1721633145328,2.4408,3479.6,3479.2,2.87422]
[1721633146310,2.4408,3479.6,3479.3,2.87406]
[1721633149672,2.4408,3479.6,3479.1,2.87423]
[1721633150014,0.60305594,3479.5,3479.0,2.87437]
[1721633150217,0.99787115,3479.5,3479.0,2.87437]
[1721633150623,0.99787115,3479.5,3478.8,2.87448]
[1721633150818,2.2632,3479.4,3478.8,2.87448]
[1721633151463,2.2632,3479.4,3478.9,2.87445]
[1721633155069,2.2632,3479.4,3478.6,2.8747]
[1721633156682,2.2632,3479.4,3478.8,2.87449]
[1721633157238,2.2632,3479.4,3478.9,2.87446]
[1721633158378,5.19478903,3479.4,3478.7,2.87463]
[1721633158931,5.79784497,3479.4,3478.7,2.87463]
[1721633159165,5.79784497,3479.4,3478.8,2.87454]
[1721633159328,5.74032594,3479.4,3478.8,2.87454]
[1721633160282,2.4753,3479.1,3478.4,2.87486]
[1721633160592,5.34966,3479.1,3478.4,2.87486]
[1721633160888,5.34966,3479.1,3478.5,2.87479]
[1721633161389,2.4753,3479.1,3478.5,2.87479]
[1721633161546,2.4753,3479.1,3478.6,2.87471]
[1721633163392,3.07835594,3479.1,3478.0,3.0]
[1721633163542,3.07835594,3479.1,3478.7,2.87456]
[1721633163543,2.4753,3479.1,3478.7,2.87456]
[1721633164755,2.4753,3479.1,3478.9,2.87441]
[1721633166175,3.07835594,3479.1,3478.9,2.87441]
[1721633166864,2.4753,3479.1,3478.9,2.87441]
[1721633167063,3.07835594,3479.1,3479.0,2.87438]
[1721633167296,2.4753,3479.1,3479.0,2.87438]
[1721633167502,3.07835594,3479.1,3479.0,2.87438]
[1721633168679,0.90429612,3479.2,3479.0,2.87438]
[1721633168915,0.60306597,3479.1,3479.0,2.87438]
[1721633170196,0.90429612,3479.2,3479.0,2.87438]
[1721633170359,0.90429612,3479.1,3479.0,2.87438]
[1721633170558,0.90429612,3479.2,3479.0,2.87438]
[1721633171943,0.90429612,3479.1,3478.8,2.8745]
[1721633172242,0.60341117,3478.9,3478.8,2.8745]
[1721633173532,0.60341117,3479.0,3478.9,5.74894]
[1721633174107,0.60341117,3479.1,3479.0,2.87438]
[1721633174465,0.60341117,3479.1,3479.0,5.74876]
[1721633174648,0.60341117,3479.2,3479.1,5.7486]
[1721633174810,0.90429612,3479.4,3479.2,2.87422]
[1721633174811,0.60341117,3479.4,3479.2,2.87422]
[1721633174995,0.60341117,3479.4,3479.3,2.87414]
[1721633175329,0.90429612,3479.5,3479.2,2.87422]
[1721633175514,0.90429612,3479.5,3479.4,2.87405]
[1721633175715,0.09990908,3479.6,3479.5,2.87397]
[1721633175716,0.90429612,3479.6,3479.5,2.87397]
[1721633176294,3.33929612,3479.7,3479.2,2.87418]
[1721633176614,0.60330375,3479.4,3479.2,3.22483311]
[1721633176793,0.60330375,3479.4,3479.3,2.87408]
[1721633176992,0.60330764,3479.5,3479.4,2.87405]
[1721633179147,0.60330764,3479.6,3479.5,2.87397]
[1721633179668,3.33929612,3479.7,3479.3,2.87414]
[1721633179824,0.60313342,3479.4,3479.3,2.87414]
[1721633180027,0.60316191,3479.4,3479.3,2.87414]
[1721633180554,0.60316191,3479.4,3479.2,2.8742]
[1721633180872,2.98656191,3479.3,3479.0,2.87438]
[1721633182049,2.98656191,3479.3,3479.1,2.87428]
[1721633182632,0.60316191,3479.4,3479.0,2.87438]
[1721633182843,3.28299612,3479.6,3479.1,2.8743]
[1721633182844,0.60316191,3479.5,3479.1,2.8743]
[1721633183039,0.60316191,3479.5,3479.4,2.87405]
[1721633183448,2.98186191,3479.6,3479.4,2.87405]
[1721633183662,2.98186191,3479.6,3479.5,2.87397]
[1721633184151,0.60316191,3479.6,3479.5,2.87397]
[1721633189780,0.90429612,3479.7,3479.5,2.87397]
[1721633190142,0.6028662,3479.6,3479.5,2.87397]
[1721633192148,0.90429612,3479.8,3479.6,2.87389]
[1721633192371,0.60278419,3479.7,3479.6,2.87389]
[1721633192574,0.60278419,3479.8,3479.6,5.74778]
[1721633192772,0.90429612,3480.1,3479.9,2.87364]
[1721633192981,2.4891,3480.2,3479.9,2.87364]
[1721633192982,0.60271878,3480.0,3479.9,2.87364]
[1721633193146,0.60271878,3480.1,3479.9,2.87364]
[1721633193346,0.60271878,3480.0,3479.9,2.87364]
[1721633194396,0.5188826,3480.0,3479.6,2.87388]
[1721633194554,3.09206875,3479.9,3479.6,2.87388]
[1721633195150,3.09206875,3479.9,3479.7,2.87379]
[1721633195587,3.09206875,3479.9,3479.4,2.87403]
[1721633195791,3.09206875,3479.9,3479.7,2.87381]
[1721633196488,3.09206875,3479.9,3479.8,2.87372]
[1721633196690,2.4895,3479.9,3479.8,2.87372]
[1721633197562,0.60256875,3480.0,3479.8,2.87372]
[1721633199056,0.60256875,3480.0,3479.7,2.8738]
[1721633199786,0.60256875,3480.0,3479.4,2.87404]